[Event "German Bundesliga 2021-22"]
[Site "Germany"]
[Date "2022.04.09"]
[Round "3.14"]
[White "Kurmann, Oliver"]
[Black "Braun, Arik"]
[Result "1-0"]
[ECO "B18"]
[WhiteElo "2462"]
[BlackElo "2587"]
[Annotator "TA"]
[PlyCount "85"]
[EventDate "2022.03.05"]
[EventType "team-tourn"]
[EventCountry "GER"]
[SourceTitle "playchess.com"]
[Source "ChessBase"]
[SourceQuality "1"]
[TimeControl "40/5400+30:1800+30"]

{[%evp 17,85,0,29,27,35,29,53,31,62,29,32,33,33,32,29,20,20,20,28,33,18,20,38,0,0,0,0,0,0,0,27,0,26,55,75,107,930,77,84,74,99,82,145,133,197,197,197,201,191,190,412,402,412,184,175,-22,328,360,637,639,631,623,606,571,908,893,875,906,826,775]} 1. e4 {[%emt 0:00:00]} c6 {[%emt 0:00:00]} 2. d4 {[%emt 0:00:00]} d5 {[%emt 0:00:00]} 3. Nd2 {[%emt 0:00:00]} dxe4 {[%emt 0:00:00]} 4. Nxe4 {[%emt 0:00:00]} Bf5 {[%emt 0:00:00]} 5. Ng3 {[%emt 0:00:00]} Bg6 {[%emt 0:00:00]} 6. Nh3 {[%emt 0:00:00]} e6 {[%emt 0:00:00]} 7. Nf4 {[%emt 0:00:00]} Qh4 {[%emt 0:00:00]} 8. Nge2 {[%emt 0:00:00]} Be4 {[%emt 0:00:00]} 9. Ng3 {[%emt 0:00:00]} Bg6 {[%emt 0:00:00]} (9... Nf6 10. Nxe4 Nxe4 11. g3 $16) 10. Be3 {[%emt 0:21:52] B18: Classical Caro-Kann: 4...Bf5 sidelines.} Nf6 {[%emt 0:16:15]} 11. Qd2 {[%emt 0:00:56][%cal Of4e6]} Bd6 {[%emt 0:01:14]} 12. O-O-O {[%emt 0:01:09] White is slightly better.} Nbd7 {[%emt 0:16:43]} 13. f3 {[%emt 0:25:40] aiming for Nh3.} Bxf4 {[%emt 0:06:31]} 14. Bxf4 {[%emt 0:00:04]} h6 {[%emt 0:00:18] [#] Inhibits Bg5.} 15. c4 $146 {[%emt 0:10:45]} ({Predecessor:} 15. Ne2 Nd5 16. Bd6 N7b6 17. Bg3 Qg5 18. Nf4 Nxf4 19. Bxf4 Qd5 20. b3 a5 21. c4 Qd7 22. a4 O-O 23. Kb2 {1-0 (41) Milov,L (2472)-Hoeglauer,P (2114) Bad Wiessee 2015}) 15... b5 {[%emt 0:09:03]} 16. Bd6 {[%emt 0:03:35]} ({Don't blunder} 16. cxb5 $2 cxb5 17. Ne4 Nxe4 18. fxe4 Bxe4 $19) 16... bxc4 {[%emt 0:04:36]} 17. Bxc4 {[%emt 0:01:13]} Nb6 {[%emt 0:01:15]} 18. Ba6 {[%emt 0:09:43]} Rd8 {[%emt 0:05:45]} 19. Ba3 {[%emt 0:00:39]} Nbd5 {[%emt 0:06:11]} 20. Rhe1 {[%emt 0:06:32]} Qxh2 {[%emt 0:03:53]} 21. Ne4 {[%emt 0:04:46]} Qc7 {[%emt 0:06:46]} 22. b3 {[%emt 0:04:58]} h5 {[%emt 0:09:18]} 23. Kb2 {[%emt 0:03:37]} h4 {[%emt 0:05:55]} 24. Rc1 {[%emt 0:00:03][%cal Oa6b5] And now Bb5! would win.} Qb6 {[%emt 0:00:22] Inhibits Bb5.} 25. Bf1 {[%emt 0:03:37] This bishop pair is nice.} Nxe4 {[%emt 0:00:28]} 26. fxe4 {[%emt 0:00:01]} Nf6 $2 {[%emt 0:00:09][%mdl 8192] [#]} (26... Ne7 $16) 27. Bc5 $2 {[%emt 0:00:28]} (27. Rxc6 $1 $18 {[%mdl 512] is the precise move to win.} Qb7 (27... Qxc6 28. Qb4) 28. Qc2 Bxe4 29. Rxe4 Nxe4 30. Rc7) 27... Qc7 {[%emt 0:02:11]} 28. Bd3 {[%emt 0:00:59][%mdl 1024] White has strong compensation.} Nd7 {[%emt 0:01:51]} 29. Ba3 {[%emt 0:00:30][%cal Od3b5] &Bianco is more active.} Qb6 {[%emt 0:00:19] Inhibits Bb5.} (29... c5 $142) 30. Qc3 $1 $16 {[%emt 0:01:10]} Rh5 {[%emt 0:01:33] Against d5} (30... a6 $16 31. d5 cxd5) 31. d5 $1 $18 {[%emt 0:01:32][%cal Bd4d5,Bd5c6,Bc6c7][%mdl 32]} Ne5 {[%emt 0:00:29]} 32. Be2 {[%emt 0:00:14]} Rg5 {[%emt 0:02:40]} 33. dxc6 {[%emt 0:00:01]} f6 $2 {[%emt 0:00:33]} (33... Nxc6 34. Qxc6+ Qxc6 35. Rxc6 Bxe4) 34. c7 {[%emt 0:02:02]} Rc8 {[%emt 0:00:04]} 35. Bf1 $40 {[%emt 0:00:39][%mdl 128] White is out for blood.} (35. Red1 $142 Bxe4 36. Rd8+ (36. Qd4 Qxd4+ 37. Rxd4 Bc6 $15) 36... Rxd8 37. cxd8=Q+ (37. c8=Q $2 Rxc8 38. Qxc8+ Kf7 $19) 37... Qxd8 38. Qb4) 35... Rg3 {[%emt 0:00:35]} 36. Qc2 {[%emt 0:00:52] [#] The board is on fire.} (36. Qd2 $1 $18 Kf7 37. Bc5 Qxc7 38. Bf2) 36... Qd4+ {[%emt 0:01:18][%mdl 8192]} (36... Nd3+ $1 $11 {and Black is okay.} 37. Bxd3 Qd4+ 38. Kb1 Qxd3) 37. Kb1 {[%emt 0:00:07] Black must now prevent Ba6.} Re3 $2 {[%emt 0:00:55]} (37... Qb6 38. Ka1 Bh5) 38. Rxe3 {[%emt 0:01:10] White is clearly winning.} Qxe3 {[%emt 0:00:05]} 39. Bb5+ $1 {[%emt 0:00:30][%cal Bf1b5,Bb5a6,Ba6c8][%mdl 32]} Kf7 {[%emt 0:00:30] [#]} 40. Ba6 $1 {[%emt 0:00:29]} Bxe4 {[%emt 0:02:05] [#] ...Rxc7 is the strong threat.} 41. Bxc8 {[%emt 0:00:00]} Bxc2+ {[%emt 0:00:00]} 42. Rxc2 {[%emt 0:00:00]} Qe1+ {[%emt 0:00:00] [#]} 43. Bc1 $1 {[%emt 0:00:00] Weighted Error Value: White=0.52/Black=0.40} 1-0

[Event "German Bundesliga 2021-22"]
[Site "Germany"]
[Date "2022.04.09"]
[Round "3.14"]
[White "Maiwald, Jens-Uwe"]
[Black "Zelbel, Patrick"]
[Result "1/2-1/2"]
[ECO "A26"]
[WhiteElo "2430"]
[BlackElo "2461"]
[Annotator "RC"]
[PlyCount "61"]
[EventDate "2022.03.05"]
[EventType "team-tourn"]
[EventCountry "GER"]
[SourceTitle "playchess.com"]
[Source "ChessBase"]
[SourceQuality "1"]
[TimeControl "40/5400+30:1800+30"]

1. Nf3 {[%emt 0:00:00]} Nf6 {[%emt 0:00:00]} 2. g3 {[%emt 0:00:00]} g6 {[%emt 0:00:00]} 3. Bg2 {[%emt 0:00:00]} Bg7 {[%emt 0:00:00]} 4. O-O {[%emt 0:00:00]} O-O {[%emt 0:00:00]} 5. d3 {[%emt 0:00:00]} d6 {[%emt 0:00:00]} 6. c4 {[%emt 0:00:00]} e5 {[%emt 0:00:00]} 7. Nc3 {[%emt 0:00:00]} Nc6 {[%emt 0:00:00]} 8. Bg5 {[%emt 0:00:13]} h6 {[%emt 0:00:00]} 9. Bxf6 {[%emt 0:00:16]} Bxf6 {[%emt 0:00:00]} 10. Rb1 {[%emt 0:00:17]} a5 {[%emt 0:00:00]} 11. a3 {[%emt 0:02:02]} Bg7 {[%emt 0:00:00]} 12. b4 {[%emt 0:01:15]} axb4 {[%emt 0:00:00]} 13. axb4 {[%emt 0:00:04]} Ne7 {[%emt 0:03:44]} 14. Qb3 {[%emt 0:10:22]} Be6 {[%emt 0:12:40]} 15. Nd2 {[%emt 0:09:31]} c6 {[%emt 0:00:43]} 16. b5 {[%emt 0:00:38]} Qa5 {[%emt 0:22:14]} 17. Rfc1 {[%emt 0:08:24]} d5 {[%emt 0:12:57]} 18. bxc6 {[%emt 0:18:56]} bxc6 {[%emt 0:02:09]} 19. Qb4 {[%emt 0:00:13]} Qxb4 {[%emt 0:06:38]} 20. Rxb4 {[%emt 0:00:16]} Rfb8 {[%emt 0:00:27]} 21. Rxb8+ {[%emt 0:02:02]} Rxb8 {[%emt 0:01:51]} 22. Na4 {[%emt 0:16:53]} f5 {[%emt 0:08:32]} 23. cxd5 {[%emt 0:16:15]} cxd5 {[%emt 0:00:06]} 24. Rc7 {[%emt 0:00:12]} Kf7 {[%emt 0:03:52]} 25. e3 {[%emt 0:01:49]} g5 {[%emt 0:06:30]} 26. Bf3 {[%emt 0:06:45]} g4 {[%emt 0:08:29]} 27. Bd1 {[%emt 0:00:21]} Rc8 {[%emt 0:01:30]} 28. Rxc8 {[%emt 0:00:44]} Nxc8 {[%emt 0:00:48]} 29. Nc5 {[%emt 0:00:52]} Bf8 {[%emt 0:00:32]} 30. Ndb3 {[%emt 0:03:45]} Nb6 {[%emt 0:01:44]} 31. d4 {[%emt 0:00:14]} 1/2-1/2

[Event "German Bundesliga 2021-22"]
[Site "Germany"]
[Date "2022.04.09"]
[Round "3.14"]
[White "Harff, Marcel"]
[Black "Dautov, Rustem"]
[Result "1/2-1/2"]
[ECO "A06"]
[WhiteElo "2367"]
[BlackElo "2596"]
[Annotator "TA"]
[PlyCount "53"]
[EventDate "2022.03.05"]
[EventType "team-tourn"]
[EventCountry "GER"]
[SourceTitle "playchess.com"]
[Source "ChessBase"]
[SourceQuality "1"]
[TimeControl "40/5400+30:1800+30"]

{[%evp 22,53,38,26,40,36,60,10,14,10,22,14,20,4,20,16,36,32,45,31,79,20,34,45,34,36,54,0,0,0,0,0,126,120]} 1. Nf3 {[%emt 0:00:00]} Nf6 {[%emt 0:00:00]} 2. c4 {[%emt 0:00:00]} e6 {[%emt 0:00:00]} 3. b3 {[%emt 0:00:00]} d5 {[%emt 0:00:00]} 4. Bb2 {[%emt 0:00:00]} c5 {[%emt 0:01:03]} 5. e3 {[%emt 0:00:00]} Nc6 {[%emt 0:04:16]} 6. cxd5 {[%emt 0:00:38]} exd5 {[%emt 0:01:25]} 7. Nc3 {[%emt 0:00:21]} Bd6 {[%emt 0:12:31]} 8. Be2 {[%emt 0:03:08]} O-O {[%emt 0:05:35]} 9. d4 {[%emt 0:03:48]} Bg4 {[%emt 0:13:49]} 10. dxc5 {[%emt 0:00:48]} Bxc5 {[%emt 0:00:09]} 11. O-O {[%emt 0:00:06]} a6 {[%emt 0:03:40]} 12. Rc1 {[%emt 0:07:23][%cal Oc3d5]} Ba7 {[%emt 0:03:22] D32: Tarrasch Defence: Sidelines and lines without g3.} 13. h3 {[%emt 0:02:28]} Be6 {[%emt 0:03:46]} 14. Na4 {[%emt 0:00:52]} (14. Bd3 $14) 14... Ne4 {[%emt 0:01:09] The position is equal.} 15. Nd4 {[%emt 0:00:21] [#]} Qd6 $146 {[%emt 0:02:21]} ({Predecessor:} 15... Bd7 16. Nxc6 Bxc6 17. Bd4 Bxa4 18. Bxa7 Bxb3 19. Qxb3 Rxa7 20. Rfd1 Nf6 21. Bf3 b5 {0-1 (48) Radosavljevic,S (2175)-Bozinovic,B (2205) Topusko 2014}) 16. Nxc6 {[%emt 0:05:00]} bxc6 {[%emt 0:00:23]} 17. Bd3 {[%emt 0:00:51] Strongly threatening Bxe4.} f5 {[%emt 0:11:10]} (17... Bb8 18. f4 $14) 18. Qc2 {[%emt 0:01:33]} Bd7 {[%emt 0:11:51]} (18... Bb8 19. g3 $16) 19. Bd4 {[%emt 0:03:18]} Bxd4 {[%emt 0:09:13]} 20. exd4 {[%emt 0:00:31]} Rae8 {[%emt 0:02:10]} (20... Rf6 $14) 21. Nc5 {[%emt 0:01:31]} (21. Nb6 $16) 21... Nxc5 $11 {[%emt 0:01:40]} 22. Qxc5 {[%emt 0:00:11]} Qh6 {[%emt 0:00:31]} 23. Qa7 {[%emt 0:02:01]} Rf7 {[%emt 0:01:52]} 24. f4 {[%emt 0:01:44]} (24. Bxa6 f4 25. Rce1 f3 26. Rxe8+ Bxe8 $11) ({Better is} 24. Qxa6 $14 g6 25. Qb6) 24... g5 {[%emt 0:00:39]} 25. Rce1 {[%emt 0:01:35]} (25. Qxa6 g4 26. Kh1 Qh4 27. Rxc6 Bxc6 28. Qxc6 Re3 $19) 25... Rxe1 {[%emt 0:06:19]} 26. Rxe1 {[%emt 0:00:11]} gxf4 {[%emt 0:00:02] [#]} (26... Qh4 $1 $11 27. Rf1 g4) 27. Qb8+ $1 {[%emt 0:01:46] Weighted Error Value: White=0.17 (very precise) /Black=0.23 (precise)} ({Wrong is} 27. Qxa6 $2 f3 28. Qa8+ Rf8 $19) ({But not} 27. Bxa6 $6 Qg5 28. Rf1 Rg7 29. Qb8+ (29. Rf2 f3 $11) 29... Kf7 $11) 1/2-1/2

[Event "German Bundesliga 2021-22"]
[Site "Germany"]
[Date "2022.04.09"]
[Round "3.15"]
[White "Wagner, Dennis"]
[Black "Fedorovsky, Michael"]
[Result "1/2-1/2"]
[ECO "E06"]
[WhiteElo "2584"]
[BlackElo "2396"]
[Annotator "TA"]
[PlyCount "55"]
[EventDate "2022.03.05"]
[EventType "team-tourn"]
[EventCountry "GER"]
[SourceTitle "playchess.com"]
[Source "ChessBase"]
[SourceQuality "1"]
[TimeControl "40/5400+30:1800+30"]

{[%evp 9,55,25,20,-11,-4,-14,10,10,20,0,52,-2,-25,-44,0,-24,-4,-25,-33,-25,-31,-36,-8,0,0,-56,-44,-45,-12,-87,-10,-14,0,0,0,0,0,0,0,-54,-54,-23,0,0,0,-36,0,0]} 1. d4 {[%emt 0:00:00]} Nf6 {[%emt 0:00:00]} 2. c4 {[%emt 0:00:00]} e6 {[%emt 0:00:00]} 3. Nf3 {[%emt 0:00:00]} d5 {[%emt 0:00:00]} 4. g3 {[%emt 0:00:00]} Be7 {[%emt 0:00:00]} 5. Bg2 {[%emt 0:00:00]} O-O {[%emt 0:00:00]} 6. Qd3 {[%emt 0:00:00] E06: Closed Catalan: Early deviations.} b6 {[%emt 0:00:00]} 7. cxd5 {[%emt 0:00:00] [#]} exd5 $146 {[%emt 0:00:00]} ({Predecessor:} 7... Nxd5 8. Nc3 Ba6 9. Qc2 c5 10. O-O Nc6 11. Qa4 Qc8 12. Nxd5 exd5 13. Re1 Bf6 14. dxc5 bxc5 {½-½ (29) Bluebaum,M (2669)-Oparin,G (2654) Chalons en Champagne 2021}) 8. Nc3 {[%emt 0:00:00]} c5 {[%emt 0:20:06]} 9. dxc5 {[%emt 0:11:20]} bxc5 {[%emt 0:00:19] [#]} (9... Ba6 $11 10. Qf5 Nc6) 10. O-O {[%emt 0:00:07]} (10. Nxd5 $1 $14 Qxd5 11. Nh4 Qxd3 12. exd3) 10... Ba6 {[%emt 0:05:34]} 11. Qc2 {[%emt 0:00:17]} Nc6 {[%emt 0:02:06] Prevents Ne5.} 12. Bg5 {[%emt 0:33:03]} Nb4 {[%emt 0:16:33]} 13. Qd2 {[%emt 0:15:17]} (13. Qa4 {keeps more tension.} d4 14. Ne5 Rb8 15. a3) 13... d4 {[%emt 0:21:10]} 14. Bxf6 {[%emt 0:00:06]} Bxf6 {[%emt 0:00:04]} (14... gxf6 15. Qh6 f5 16. Nd5 Nxd5 17. Qxa6 $14) 15. Ne4 {[%emt 0:00:06]} Be7 {[%emt 0:00:30]} 16. a3 {[%emt 0:00:02]} Nc6 {[%emt 0:04:16]} 17. Rfe1 {[%emt 0:09:47]} (17. Rfc1 $11 Na5 18. Qd1 (18. Nxc5 Bxc5 19. Qd1 Bb6 $17)) 17... Qb6 $15 {[%emt 0:01:53]} 18. Qc2 $1 {[%emt 0:02:46]} Rab8 {[%emt 0:02:09]} 19. Neg5 {[%emt 0:04:17]} (19. Nxc5 $11 {keeps the balance.} Qxc5 20. Qxc5 Bxc5 21. Rac1) 19... d3 {[%emt 0:02:04]} (19... g6 $17) 20. exd3 $11 {[%emt 0:00:04][%cal Od3d4]} Qxb2 {[%emt 0:00:10]} 21. Qa4 {[%emt 0:01:36][%csl LRa6,LRc6]} Rb6 {[%emt 0:04:40]} (21... Bxg5 22. Nxg5 Rb6 23. Bxc6 $16) 22. Qe4 {[%emt 0:06:58][%csl Gg5][%cal Re4h7]} g6 {[%emt 0:00:11]} 23. h4 {[%emt 0:00:25]} ({Reject} 23. Qh4 Qg7 24. Qe4 Bxg5 25. Nxg5 Nd4 $17) 23... Qc3 {[%emt 0:01:50]} 24. d4 {[%emt 0:08:52]} (24. Rad1 $11) 24... Bd3 $15 {[%emt 0:07:24]} ({But not} 24... cxd4 {[#]} 25. Nxd4 $1 Bxg5 26. Nxc6 $11) 25. Qd5 {[%emt 0:01:34]} Bc4 {[%emt 0:01:04]} 26. Qe4 {[%emt 0:00:06] aiming for Rac1. Really sharp!} Bd3 {[%emt 0:00:45] This bishop pair is nice.} ({Don't do} 26... f5 27. Qf4 Bxg5 28. hxg5 $16) 27. Qd5 {[%emt 0:00:12] Strongly threatening dxc5.} Bc4 {[%emt 0:00:15]} 28. Qe4 {[%emt 0:00:30] Weighted Error Value: White=0.22 (precise) /Black=0.18 (very precise)} 1/2-1/2

[Event "German Bundesliga 2021-22"]
[Site "Germany"]
[Date "2022.04.09"]
[Round "3.15"]
[White "Krasenkow, Michal"]
[Black "Hainke, Guntram"]
[Result "1-0"]
[ECO "D45"]
[WhiteElo "2576"]
[BlackElo "2302"]
[Annotator "TA"]
[PlyCount "31"]
[EventDate "2022.03.05"]
[EventType "team-tourn"]
[EventCountry "GER"]
[SourceTitle "playchess.com"]
[Source "ChessBase"]
[SourceQuality "1"]
[TimeControl "40/5400+30:1800+30"]

{[%evp 12,31,29,17,28,0,22,23,16,0,51,61,44,50,141,135,184,206,433,428,432,418]} 1. Nf3 {[%emt 0:00:00]} d5 {[%emt 0:00:00]} 2. d4 {[%emt 0:00:00]} Nf6 {[%emt 0:00:00]} 3. c4 {[%emt 0:00:00]} c6 {[%emt 0:00:00]} 4. Nc3 {[%emt 0:00:00]} e6 {[%emt 0:00:00]} 5. e3 {[%emt 0:00:00]} a6 {[%emt 0:00:00]} 6. c5 {[%emt 0:00:00]} Nbd7 {[%emt 0:00:00]} 7. b4 {[%emt 0:00:00]} b6 {[%emt 0:00:00] is the legacy move (7...g6). D45: Semi-Slav: 5 e3.} 8. Bb2 {[%emt 0:00:00]} Be7 {[%emt 0:00:00]} 9. Bd3 {[%emt 0:00:00]} a5 {[%emt 0:00:00] White has an edge.} 10. a3 {[%emt 0:00:00]} (10. b5 $5 {[%cal Rb5c6]}) 10... Ba6 {[%emt 0:00:00]} (10... Qc7 $11) 11. Bxa6 $14 {[%emt 0:03:56]} Rxa6 {[%emt 0:00:00]} 12. b5 {[%emt 0:00:04]} cxb5 {[%emt 0:00:09]} ({Black should play} 12... Ra8 $1 $14) 13. c6 $36 {[%emt 0:00:20][%mdl 2048] [#] Keeping Black busy. &Bianco is more active.} Nb8 $146 {[%emt 0:00:31]} (13... Nf8 $16 {was called for.} 14. Nxb5 Ng6) ({Predecessor:} 13... b4 14. cxd7+ Qxd7 15. axb4 Bxb4 16. O-O O-O 17. Ne5 Qb7 18. Nb5 Ne4 19. Rc1 a4 {0-1 (45) Maiorov,N (2511)-Aleksandrov,A (2617) Warsaw 2009}) 14. Nxb5 $18 {[%emt 0:01:08] [#] Threatens to win with c7.} Bd6 {[%emt 0:10:17] Against c7} (14... Nxc6 {was necessary.} 15. Rc1 Nb8) 15. c7 {[%emt 0:02:46]} Bxc7 {[%emt 0:44:25]} 16. Rc1 {[%emt 0:00:24] Black did not feel at home in the position after the opening.  Weighted Error Value: White=0.04 (flawless) /Black=0.65} 1-0

[Event "German Bundesliga 2021-22"]
[Site "Germany"]
[Date "2022.04.09"]
[Round "3.15"]
[White "Sebastian, Dirk"]
[Black "Hess, Max"]
[Result "0-1"]
[ECO "B12"]
[WhiteElo "2445"]
[BlackElo "2395"]
[Annotator "NA RC"]
[PlyCount "130"]
[EventDate "2022.03.05"]
[EventType "team-tourn"]
[EventCountry "GER"]
[SourceTitle "playchess.com"]
[Source "ChessBase"]
[SourceQuality "1"]
[TimeControl "40/5400+30:1800+30"]

1. e4 {[%emt 0:00:00]} c6 {[%emt 0:00:00]} 2. d4 {[%emt 0:00:00]} d5 {[%emt 0:00:00]} 3. e5 {[%emt 0:00:00]} Bf5 {[%emt 0:00:00]} 4. Nd2 {[%emt 0:00:00]} e6 {[%emt 0:00:00]} 5. Nb3 {[%emt 0:00:00]} Ne7 {[%emt 0:00:00]} 6. Nf3 {[%emt 0:00:00]} h6 {[%emt 0:00:00]} 7. Be2 {[%emt 0:00:00]} Bh7 {[%emt 0:00:00]} 8. O-O {[%emt 0:00:00]} Ng6 {[%emt 0:00:00]} 9. a4 {[%emt 0:07:42]} Be7 {[%emt 0:00:00]} 10. c4 {[%emt 0:06:34]} O-O {[%emt 0:06:23]} 11. a5 {[%emt 0:04:22]} dxc4 {[%emt 0:01:09]} 12. Bxc4 {[%emt 0:00:06]} Na6 {[%emt 0:00:13]} 13. Bd2 {[%emt 0:17:31]} Qb8 {[%emt 0:27:17]} 14. Qc1 {[%emt 0:17:36]} Rd8 {[%emt 0:06:12]} 15. Ra4 {[%emt 0:04:03]} Bf8 {[%emt 0:12:15]} 16. Re1 {[%emt 0:07:11]} Ne7 {[%emt 0:02:21]} 17. Bxa6 {[%emt 0:07:05]} bxa6 {[%emt 0:00:11]} 18. Rb4 {[%emt 0:00:52]} Qc7 {[%emt 0:11:07]} 19. Nc5 {[%emt 0:02:07]} Nd5 {[%emt 0:14:06]} 20. Rc4 {[%emt 0:00:24]} Qc8 {[%emt 0:03:53]} 21. h4 {[%emt 0:04:32]} Rb8 {[%emt 0:00:16]} 22. b4 {[%emt 0:01:26]} Bf5 {[%emt 0:06:27]} 23. Nh2 {[%emt 0:01:05]} Bxc5 {[%emt 0:01:14]} 24. dxc5 {[%emt 0:02:13]} Rd7 {[%emt 0:00:28]} 25. Nf1 {[%emt 0:05:13]} Rdb7 {[%emt 0:00:47]} 26. Qa3 {[%emt 0:02:43]} Kh8 {[%emt 0:01:37]} 27. Ng3 {[%emt 0:00:23]} Bh7 {[%emt 0:01:46]} 28. Rg4 {[%emt 0:01:09]} Bf5 {[%emt 0:01:24]} 29. Rd4 {[%emt 0:01:07]} Bh7 {[%emt 0:00:08]} 30. Rg4 {[%emt 0:04:03]} Bf5 {[%emt 0:00:06]} 31. Rd4 {[%emt 0:00:02]} Bh7 {[%emt 0:00:05]} 32. f3 {[%emt 0:03:33]} Qc7 {[%emt 0:03:09]} 33. Nh5 {[%emt 0:01:10]} Qe7 {[%emt 0:01:30]} 34. Kh2 {[%emt 0:02:01]} Bg6 {[%emt 0:01:11]} 35. Ng3 {[%emt 0:00:02]} Rd8 {[%emt 0:01:18]} 36. h5 {[%emt 0:01:23]} Bh7 {[%emt 0:00:01]} 37. Qc1 {[%emt 0:00:40]} Nxb4 {[%emt 0:01:04]} 38. Rg4 {[%emt 0:00:30]} Nd3 {[%emt 0:01:12]} 39. Bxh6 {[%emt 0:00:03]} gxh6 {[%emt 0:00:35]} 40. Qxh6 {[%emt 0:00:04]} Rg8 {[%emt 0:00:16]} 41. Ree4 {[%emt 0:00:00]} Rbb8 {[%emt 0:00:00]} 42. Nf1 {[%emt 0:22:54]} Rxg4 {[%emt 0:00:00]} 43. Rxg4 {[%emt 0:01:07]} Rg8 {[%emt 0:00:00]} 44. Ne3 {[%emt 0:03:47]} Nxe5 {[%emt 0:00:00]} 45. Rxg8+ {[%emt 0:00:50]} Kxg8 {[%emt 0:00:00]} 46. Qf4 {[%emt 0:00:06]} Nd3 {[%emt 0:02:43]} 47. Qg3+ {[%emt 0:00:54]} Kh8 {[%emt 0:00:41]} 48. Qb8+ {[%emt 0:02:49]} Bg8 {[%emt 0:00:06]} 49. Ng4 {[%emt 0:00:32]} Qg5 {[%emt 0:05:43]} 50. Qd6 {[%emt 0:01:09]} Qf4+ {[%emt 0:08:48]} 51. Kg1 {[%emt 0:00:46]} Qxd6 {[%emt 0:02:21]} 52. cxd6 {[%emt 0:00:02]} Nc5 {[%emt 0:00:05]} 53. Ne5 {[%emt 0:00:36]} Nb7 {[%emt 0:00:22]} 54. d7 {[%emt 0:00:05]} Nd8 {[%emt 0:00:10]} 55. g4 {[%emt 0:00:46]} f6 {[%emt 0:00:40]} 56. Ng6+ {[%emt 0:00:07]} Kg7 {[%emt 0:00:05]} 57. Ne7 {[%emt 0:00:03]} Bh7 {[%emt 0:00:31]} 58. f4 {[%emt 0:00:13]} Kh6 {[%emt 0:03:28]} 59. Kf2 {[%emt 0:00:11]} f5 {[%emt 0:00:18]} 60. g5+ {[%emt 0:00:20]} Kxh5 {[%emt 0:00:09]} 61. Ke3 {[%emt 0:00:02]} e5 {[%emt 0:01:35]} 62. fxe5 {[%emt 0:00:07]} Kxg5 {[%emt 0:00:11]} 63. Kd4 {[%emt 0:00:11]} f4 {[%emt 0:00:58]} 64. Kc5 {[%emt 0:00:32]} f3 {[%emt 0:02:01]} 65. Kd6 {[%emt 0:02:31]} Bf5 {[%emt 0:02:11]} 0-1

[Event "German Bundesliga 2021-22"]
[Site "Germany"]
[Date "2022.04.09"]
[Round "3.16"]
[White "Lauber, Arnd"]
[Black "Meissner, Felix"]
[Result "1/2-1/2"]
[ECO "E52"]
[WhiteElo "2411"]
[BlackElo "2381"]
[Annotator "NA RC"]
[PlyCount "75"]
[EventDate "2022.03.05"]
[EventType "team-tourn"]
[EventCountry "GER"]
[SourceTitle "playchess.com"]
[Source "ChessBase"]
[SourceQuality "1"]
[TimeControl "40/5400+30:1800+30"]

1. d4 {[%emt 0:00:00]} Nf6 {[%emt 0:00:00]} 2. c4 {[%emt 0:00:00]} e6 {[%emt 0:00:00]} 3. Nc3 {[%emt 0:00:00]} Bb4 {[%emt 0:00:00]} 4. e3 {[%emt 0:00:00]} O-O {[%emt 0:00:00]} 5. Bd3 {[%emt 0:00:00]} d5 {[%emt 0:00:00]} 6. Nf3 {[%emt 0:00:00]} b6 {[%emt 0:00:00] 6...dxc4 is the modern continuation.} 7. O-O {[%emt 0:02:44]} Ba6 {[%emt 0:00:00]} 8. Ne5 {[%emt 0:05:51]} dxc4 {[%emt 0:12:38]} 9. Nxc4 {[%emt 0:01:24]} c5 {[%emt 0:00:46]} 10. a3 {[%emt 0:27:17]} Bxc3 {[%emt 0:00:07]} 11. bxc3 {[%emt 0:00:03]} Qc7 {[%emt 0:01:01] [#]} 12. Qe2 $146 {[%emt 0:00:58]} ({Predecessor:} 12. Ne5 Bxd3 13. Qxd3 Nc6 14. Nxc6 Qxc6 15. f3 Rac8 16. Bb2 Rfd8 17. Rac1 Qa4 18. Qd1 {0-1 (49) Krivousas,T-Linauskas,D (2321) Plateliai 1999}) 12... Rc8 {[%emt 0:00:30]} 13. Ne5 {[%emt 0:00:41]} Bxd3 {[%emt 0:00:09]} 14. Qxd3 {[%emt 0:00:03]} Nc6 {[%emt 0:10:50]} 15. Nxc6 $1 {[%emt 0:06:40]} Qxc6 {[%emt 0:00:07]} 16. Bd2 {[%emt 0:00:03]} cxd4 {[%emt 0:07:26]} 17. cxd4 {[%emt 0:00:05]} Qc2 {[%emt 0:00:29]} 18. Qxc2 {[%emt 0:00:04]} Rxc2 {[%emt 0:00:05]} 19. Rfd1 {[%emt 0:00:02]} Rac8 {[%emt 0:01:22]} 20. f3 {[%emt 0:02:49]} R8c4 {[%emt 0:03:32]} 21. Kf1 {[%emt 0:07:58]} Nd5 {[%emt 0:06:39]} 22. Ke1 $1 {[%emt 0:00:21]} f5 {[%emt 0:02:42]} 23. Rdc1 $11 {[%emt 0:08:17]} Kf7 {[%emt 0:14:09]} 24. Rxc2 {[%emt 0:03:32]} Rxc2 {[%emt 0:00:02]} 25. Ke2 {[%emt 0:00:15]} b5 {[%emt 0:05:12]} 26. Kd3 {[%emt 0:07:23]} Rc4 {[%emt 0:00:40]} 27. Bb4 {[%emt 0:09:43]} h5 {[%emt 0:03:31]} 28. g3 {[%emt 0:04:52]} a6 {[%emt 0:00:57]} 29. Rb1 {[%emt 0:01:39]} g5 {[%emt 0:04:02]} 30. e4 {[%emt 0:01:04]} Nf6 {[%emt 0:02:39]} 31. a4 {[%emt 0:05:19]} fxe4+ {[%emt 0:02:20]} 32. fxe4 {[%emt 0:00:05]} e5 {[%emt 0:01:49]} 33. dxe5 {[%emt 0:02:33]} Nxe4 {[%emt 0:00:21]} 34. axb5 {[%emt 0:00:46]} axb5 {[%emt 0:00:05]} 35. Bd6 {[%emt 0:02:12]} Nf2+ {[%emt 0:05:47]} 36. Kd2 {[%emt 0:00:10]} Ne4+ {[%emt 0:00:33]} 37. Kd3 {[%emt 0:00:09]} Nf2+ {[%emt 0:00:08]} 38. Kd2 {[%emt 0:00:11]} 1/2-1/2